fUSD/lending_fUSD_20240101
["ID","MTS","AMOUNT","RATE_DAILY","PERIOD"]
[309785673,1704120643027,-541.73151857,0.000347,2]
[309785674,1704120643037,-158.54939152,0.000347,2]
[309785675,1704120643049,-17543.29022994,0.000347,2]
[309785676,1704120643060,-17433.4237,0.000347,2]
[309785677,1704120643069,-30230.3365,0.000347,7]
[309785678,1704120643079,-950.87827,0.000347,2]
[309785679,1704120643088,-158.1,0.00034753,2]
[309785680,1704120643097,-170.41202416,0.00034779,2]
[309785681,1704120643106,-52375.0,0.00034784,2]
[309785682,1704120643115,-158.7,0.00034786,2]
[309785683,1704120643125,-1057.30381415,0.00034789,2]
[309785684,1704120643134,-79243.40299144,0.0003479,7]
[309785685,1704120643147,-3811.37813267,0.0003479,7]
[309785686,1704120643158,-5066.99298446,0.0003479,7]
[309785687,1704120643170,-688.98531152,0.0003479,7]
[309785688,1704120643182,-5546.27672472,0.0003479,7]
[309785697,1704120645415,-300.0,0.0003479,7]
[309785698,1704120645428,-608.33683848,0.0003479,7]
[309785699,1704120645439,-1444.83402703,0.0003479,7]
[309785700,1704120645686,-952.39551338,0.0003479,7]
[309785712,1704120665138,383.10642786,0.00039161,120]
[309785713,1704120694688,2641.43633846,0.00039161,30]
[309785714,1704120702695,1820.01194395,0.00039161,30]
[309785715,1704120730248,1911.78656864,0.00039161,30]
[309785716,1704120746207,1808.2806,0.00039161,30]
[309785717,1704120778617,2163.48522579,0.00039161,30]
[309785718,1704120785948,418.38166307,0.00039161,30]
[309785719,1704120805827,2154.0,0.00039161,120]
[309785720,1704120811231,1033.31543596,0.00039161,120]
[309785721,1704120814475,337.23997033,0.00039161,30]
[309785722,1704120815771,1301.45234382,0.00023,2]
[309785723,1704120815794,429.85430936,0.00023,2]
[309785724,1704120817936,549.53914456,0.00039161,120]
[309785725,1704120819233,223.21453874,0.00039161,120]
[309785726,1704120822655,654.75720927,0.00039161,120]
[309785727,1704120823415,651.7082828,0.00039161,120]
[309785728,1704120826364,1273.14342851,0.00039161,120]
[309785729,1704120832033,1570.14569064,0.00023,15]
[309785730,1704120832056,2000.0,0.00023,15]
[309785731,1704120832083,8285.03086461,0.00023,15]
[309785732,1704120833374,226.22006523,0.00039161,30]
[309785733,1704120844851,568.38256406,0.00039161,120]
[309785736,1704120849636,249.58597014,0.00039161,120]
[309785737,1704120851976,1165.81525229,0.00039161,120]
[309785738,1704120856609,768.0,0.00039161,120]
[309785739,1704120859212,1183.47283432,0.00039161,120]
[309785740,1704120861502,327.973817,0.00039161,120]
[309785741,1704120861990,218.81838007,0.00039161,120]
[309785742,1704120862568,378.13149154,0.00039161,120]
[309785743,1704120862638,312.69664856,0.00039161,120]
[309785744,1704120862962,288.10625957,0.00039161,120]
[309785745,1704120862992,242.52783733,0.00039161,30]
[309785746,1704120863021,3680.02973007,0.00039161,30]
[309785747,1704120863050,979.28076636,0.00039161,120]
[309785748,1704120863118,509.12972913,0.00039161,30]
[309785749,1704120863580,1327.8781901,0.00039161,30]
[309785750,1704120863923,259.46318717,0.00039161,120]
[309785751,1704120864835,327.1582502,0.00039161,120]
[309785752,1704120866171,701.11439717,0.00039161,30]
[309785753,1704120882434,150.0,0.00039161,30]
[309785754,1704120965117,343.47501484,0.00039157,120]
[309785759,1704121238820,250.0,0.000192,2]
[309785760,1704121248303,157.60526943,0.00023,2]
[309785761,1704121265092,150.0,0.00039117,120]
[309785762,1704121269225,500.0,0.000261,30]
[309785763,1704121269677,566.60413206,0.000261,30]
[309785765,1704121387399,150.862468,0.00039117,30]
[309785767,1704121529348,1560.65195384,0.00039117,30]
[309785769,1704121598584,157.60526943,0.00022985,2]
[309785770,1704121769105,-416.78911708,0.0002307,2]
[309785781,1704121793091,177.63,0.00016712,2]
[309785800,1704121831549,-696.75265605,0.00023069,2]
[309785802,1704121831560,-661.14203859,0.0002307,2]
[309785804,1704121831602,-603.01113768,0.0002307,2]
[309785805,1704121831763,-581.9076254,0.0002307,2]
[309785806,1704121831772,-160.31620512,0.00023085,2]
[309785807,1704121831781,-160.31620512,0.00023085,2]
[309785808,1704121831802,-420.286617,0.000231,2]
[309785809,1704121831812,-500.0,0.000233,2]
[309785810,1704121831822,-205.79984752,0.000274,2]
[309785811,1704121831834,-544.20015248,0.000274,2]
[309785812,1704121831844,-1238.75171233,0.0003,30]
[309785813,1704121831854,-343.59,0.00030681,2]
[309785814,1704121831864,-190.3679819,0.00031214,4]
[309785815,1704121831876,-1035.45343512,0.000315,2]
[309785816,1704121831886,-163.2,0.00032495,2]
[309785817,1704121831896,-712.0,0.00032509,2]
[309785818,1704121831905,-150.0,0.00032565,3]
[309785819,1704121831916,-206.03,0.00032565,2]
[309785820,1704121831926,-7541.80588164,0.00032566,2]
[309785822,1704121831939,-350.48934457,0.00032566,2]
[309785824,1704121831951,-384.04477379,0.00032566,2]
[309785826,1704121831960,-500.0,0.00032566,2]
[309785827,1704121831971,-250.0,0.00032578,2]
[309785829,1704121831981,-1557.33,0.0003258,2]
[309785832,1704121831990,-225.48,0.00032599,2]
[309785835,1704121831999,-158.75,0.00032747,2]
[309785838,1704121832009,-2309.73996149,0.000329,2]
[309785841,1704121832019,-1422.67305163,0.000329,2]
[309785846,1704121832040,-407.776,0.000329,2]
[309785895,1704121837661,-205.0,0.00032788,2]
[309785896,1704121837673,-95.0,0.000329,2]
[309785897,1704121837689,-2611.2,0.000329,2]
[309785898,1704121837707,-254.7757355,0.000329,2]
[309785899,1704121837718,-288.0,0.0003292,2]
[309785900,1704121837729,-448.51077213,0.00032939,4]
[309785901,1704121837743,-236.56103666,0.00032939,4]
[309785902,1704121837755,-343.59,0.00032945,2]
[309785903,1704121837768,-156.8239587,0.00032948,4]
[309785904,1704121837780,-231.74,0.0003298,15]
[309785905,1704121837792,-158.75,0.00033089,2]
[309785906,1704121837803,-181.44,0.00033162,2]
[309785907,1704121837818,-866.6,0.00033366,2]
[309785908,1704121837830,-158.75,0.0003343,2]
[309785909,1704121837841,-157.59,0.00033701,2]
[309785910,1704121837853,-158.75,0.00033771,2]
[309785911,1704121837865,-167.01,0.00033854,2]
[309785912,1704121837879,-2799.5229,0.0003386,2]
[309785913,1704121837890,-278.12972048,0.00033958,4]
[309785914,1704121837902,-155.0,0.00033958,4]
[309785915,1704121837914,-216.92151229,0.00033958,4]
[309785916,1704121837925,-258.06454763,0.00033958,4]
[309785917,1704121837935,-3491.00280087,0.00033958,4]
[309785918,1704121837948,-500.0,0.00033958,4]
[309785919,1704121837962,-306.46229971,0.00033958,4]
[309785920,1704121837977,-1890.87,0.00033958,4]
[309785921,1704121838085,-2970.15332469,0.00033958,4]
[309785922,1704121838100,-997.92117687,0.00033958,4]
[309785966,1704121840158,-487.36791768,0.00033958,4]
[309785968,1704121840169,-151.36666935,0.00033958,4]
[309785974,1704121840860,-3.63333065,0.00033958,4]
[309785975,1704121840872,-1958.89787717,0.00033959,4]
[309785976,1704121840883,-163.2,0.00034017,2]
[309785977,1704121840895,-1000.0,0.00034111,4]
[309785978,1704121840907,-158.75,0.00034112,2]
[309785979,1704121840917,-792.39856,0.0003444,2]
[309785980,1704121840929,-158.75,0.00034454,2]
[309785981,1704121840940,-179.81964,0.00034683,5]
[309785982,1704121840951,-68652.3167,0.00034684,2]
[309785983,1704121840962,-347.26719587,0.00034688,2]
[309785984,1704121840974,-156.2319095,0.00034688,7]
[309785985,1704121840986,-25059.1456428,0.0003469,7]
[309785986,1704121840996,-10000.0,0.00034699,2]
[309785987,1704121841005,-19405.72566385,0.000347,2]
[309785988,1704121841018,-281.76724875,0.000347,2]
[309785989,1704121841099,-1638.49718638,0.000347,2]
[309785990,1704121841113,-549.04591209,0.000347,2]
[309785991,1704121841126,-918.92275125,0.000347,2]
[309785992,1704121841141,-9272.91267443,0.000347,2]
[309785998,1704121842571,-2642.87264914,0.000347,2]
[309785999,1704121842625,-4042.26735925,0.000347,2]
[309786000,1704121842734,-152866.94513499,0.000347,2]
[309786001,1704121842748,-418.80810055,0.000347,2]
[309786002,1704121842789,-920.453401,0.000347,2]
[309786003,1704121842844,-4777.34371356,0.000347,2]
[309786004,1704121842857,-3038.19626055,0.000347,2]
[309786021,1704121845604,-942.3484146,0.000347,2]
[309786028,1704121845660,-427.66,0.000347,2]
[309786031,1704121845673,-313.10498676,0.000347,2]
[309786042,1704121845770,-646.065,0.000347,2]
[309786044,1704121845782,-3658.60448662,0.000347,2]
[309786047,1704121845795,-599.27979208,0.000347,2]
[309786050,1704121845825,-2755.94191632,0.000347,2]
[309786051,1704121845837,-1332.27306263,0.000347,2]
[309786052,1704121845850,-1020.16497,0.000347,2]
[309786053,1704121845884,-21407.50000001,0.000347,2]
[309786070,1704121859672,493.99406259,0.00016712,5]
[309786071,1704121884818,235243.75,0.00039117,30]
[309786072,1704121885315,14487.15946114,0.00016712,2]
[309786073,1704121885340,21778.64449054,0.00016712,2]
[309786074,1704121885545,177.87762622,0.00016712,2]
[309786075,1704121886458,8032.73851752,0.00016712,2]
[309786076,1704121896761,592.53966422,0.00016712,2]
[309786077,1704121910288,242.1940013,0.000185,2]
[309786078,1704121921196,278.5794419,0.0002,2]
[309786079,1704121930583,155.0,0.000185,2]
[309786080,1704121943591,155.0,0.000185,2]
[309786081,1704121944420,283.18234535,0.000185,2]
[309786082,1704121945127,155.22666269,0.000185,2]
[309786083,1704121946572,155.0,0.000185,2]
[309786084,1704121950278,282.13378782,0.000185,2]
[309786085,1704121950446,155.0,0.000185,2]
[309786086,1704121954404,989.66528516,0.000185,2]
[309786087,1704121956478,10961.12501777,0.000185,2]
[309786088,1704121960713,225.80466059,0.000185,2]
[309786089,1704121965407,400.83881245,0.00017945,2]
[309786090,1704121986005,155.0,0.000185,2]
[309786091,1704121994288,500.0,0.000185,2]
[309786096,1704122260211,623.22668555,0.000192,2]
[309786097,1704122288175,304.125466,0.00039116,30]
[309786100,1704122475853,1000.0,0.00039175,30]
[309786101,1704122476158,1000.0,0.00039175,30]
[309786102,1704122476515,1000.0,0.00039175,30]
[309786103,1704122476876,1000.0,0.00039175,30]
[309786104,1704122477270,1000.0,0.00039175,30]
[309786105,1704122477614,1000.0,0.00039175,30]
[309786106,1704122477960,1000.0,0.00039175,30]
[309786107,1704122478449,1000.0,0.00039175,30]
[309786108,1704122478796,1000.0,0.00039175,30]
[309786109,1704122479159,1000.0,0.00039175,30]
[309786110,1704122479463,1571.910102,0.00039175,30]
[309786164,1704122684612,1960.690698,0.00039175,30]
[309786168,1704122814818,-695.17387652,0.00023558,2]
[309786169,1704122814842,-696.75265605,0.00023559,2]
[309786170,1704122814863,-155.0,0.0002356,2]
[309786171,1704122814884,-7753.85560688,0.0002356,2]
[309786172,1704122814904,-2262.84991875,0.0002356,2]
[309786173,1704122814923,-3612.04475606,0.00023561,2]
[309786174,1704122814943,-416.54397333,0.00023562,2]
[309786175,1704122814964,-930.65377977,0.00023562,2]
[309786176,1704122814987,-382.72903622,0.00023562,2]
[309786177,1704122815011,-245.75950104,0.00023562,2]
[309786178,1704122815031,-505.6,0.00023574,2]
[309786179,1704122815051,-150.0,0.00023839,2]
[309786180,1704122815074,-165.27865295,0.00023858,2]
[309786181,1704122815105,-7289.16792401,0.00023985,2]
[309786182,1704122815130,-2930.6806173,0.00023988,2]
[309786183,1704122815151,-8940.36,0.00023988,2]
[309786184,1704122815173,-21218.2230348,0.0002399,2]
[309786185,1704122815195,-165.27865294,0.0002487,2]
[309786186,1704122815217,-431.77171128,0.00025,2]
[309786187,1704122815237,-962.51555815,0.00025287,2]
[309786188,1704122815258,-1579.349333,0.00025288,2]
[309786189,1704122815280,-499.99,0.00025298,2]
[309786190,1704122815301,-9694.04339314,0.00025299,2]
[309786191,1704122815323,-374.22,0.00025456,2]
[309786192,1704122815345,-159.09,0.00025474,2]
[309786193,1704122815367,-225.48,0.00025553,2]
[309786194,1704122815389,-159.09,0.00025663,2]
[309786195,1704122815411,-505.6,0.00025838,2]
[309786196,1704122815433,-159.09,0.00025853,2]
[309786197,1704122815456,-165.27865294,0.00025881,2]
[309786198,1704122815476,-250.0,0.00025965,2]
[309786199,1704122815498,-159.09,0.00026043,2]
[309786200,1704122815520,-210.0,0.00026223,2]
[309786201,1704122815542,-159.09,0.00026232,2]
[309786202,1704122815564,-2221.58,0.00026301,2]
[309786203,1704122815585,-159.09,0.00026422,2]
[309786204,1704122815610,-374.22,0.00026435,2]
[309786205,1704122815631,-159.09,0.00026612,2]
[309786206,1704122815653,-165.22,0.0002671,2]
[309786207,1704122815675,-159.09,0.00026801,2]
[309786208,1704122815696,-165.27865294,0.00026893,2]
[309786209,1704122815717,-450.0,0.00027,3]
[309786210,1704122815737,-222.71937821,0.00027099,2]
[309786211,1704122815758,-430.4,0.000271,2]
[309786212,1704122815780,-2221.58,0.00027275,2]
[309786213,1704122815802,-165.22,0.00027378,2]
[309786214,1704122815824,-250.0,0.00027397,2]
[309786215,1704122815847,-194.89,0.00027397,2]
[309786216,1704122815869,-374.22,0.00027413,2]
[309786217,1704122815892,-158.99797593,0.000277,3]
[309786218,1704122815914,-155.0,0.00027718,2]
[309786219,1704122816138,-769.17,0.00027719,2]
[309786220,1704122816161,-769.17,0.00027719,2]
[309786221,1704122816181,-769.17,0.00027719,2]
[309786222,1704122816201,-769.17,0.00027719,2]
[309786223,1704122816220,-769.17,0.00027719,2]
[309786224,1704122816240,-769.17,0.00027719,2]
[309786225,1704122816260,-769.17,0.00027719,2]
[309786226,1704122816280,-769.17,0.00027719,2]
[309786227,1704122816301,-769.17,0.00027719,2]
[309786228,1704122816326,-769.17,0.00027719,2]
[309786229,1704122816348,-119096.05335779,0.0002772,2]
[309786265,1704123031791,-825.29246021,0.00023556,2]
[309786268,1704123031804,-515.44592407,0.00023556,2]
[309786270,1704123031820,-589.42627012,0.00023556,2]
[309786273,1704123031833,-368.2320338,0.00023556,2]
[309786275,1704123031845,-310.52152974,0.00023556,2]
[309786278,1704123031901,-520.55221262,0.00023556,2]
[309786279,1704123031910,-220.884249,0.00027671,14]
[309786280,1704123031919,-2262.84991875,0.00027714,2]
[309786282,1704123031931,-585.0,0.00027715,2]
[309786284,1704123031941,-150.0,0.00027717,2]
[309786285,1704123031950,-758.47760064,0.00027718,2]
[309786286,1704123031960,-245.54211778,0.00027718,2]
[309786287,1704123031970,-415.56857743,0.00027718,2]
[309786288,1704123031980,-211.57994505,0.00027718,2]
[309786289,1704123031989,-958.19413029,0.00027718,2]
[309786290,1704123031999,-221.313463,0.00027718,2]
[309786291,1704123032008,-929.97138963,0.00027718,2]
[309786292,1704123032018,-680.29433798,0.00027719,2]
[309786293,1704123032028,-2825.36783165,0.00027719,2]
[309786294,1704123034488,-695.17387652,0.0002767,2]
[309786295,1704123034498,-501.20804318,0.00027719,2]
[309786296,1704123034509,-2255.0,0.0002772,2]
[309786297,1704123034519,-123.82048096,0.0002772,2]
[309786344,1704123037881,-670.09237635,0.0002772,2]
[309786351,1704123037939,-2421.80039076,0.0002772,2]
[309786353,1704123037949,-569.6,0.00027729,2]
[309786355,1704123037959,-197.68369886,0.000279,2]
[309786357,1704123037969,-3876.39805635,0.000279,2]
[309786359,1704123037978,-306.32549362,0.000279,3]
[309786361,1704123037987,-170.41202413,0.000279,2]
[309786363,1704123037996,-168.16911114,0.000279,2]
[309786365,1704123038006,-165.27865294,0.00027904,2]
[309786367,1704123038015,-1432.4,0.00027945,2]
[309786369,1704123038025,-1297.77,0.00027945,2]
[309786371,1704123038035,-198.26231933,0.0002799,2]
[309786373,1704123038044,-155.0,0.00027998,5]
[309786375,1704123038054,-155.0,0.00027998,2]
[309786377,1704123038064,-207.00797767,0.00027998,2]
[309786379,1704123038073,-43.33029711,0.00027998,2]
[309786381,1704123038097,-111.66970289,0.00027998,2]
[309786383,1704123038107,-367.06162215,0.00027999,15]
[309786385,1704123038116,-66.22529712,0.00028,2]
[309786387,1704123038127,-1782.38747828,0.00028,2]
[309786388,1704123038140,-620.07290513,0.00028,2]
[309786389,1704123038164,-39884.5432487,0.00028,2]
[309786390,1704123038179,-4401.849333,0.00028,2]
[309786391,1704123038219,-262.96695376,0.00028,2]
[309786397,1704123040435,-455.54,0.00028,2]
[309786398,1704123040448,-287.24130708,0.00028,2]
[309786399,1704123040461,-1481.96499895,0.00028,2]
[309786400,1704123040487,-473.40238774,0.00028,2]
[309786401,1704123041130,-950283.80609024,0.00028,2]
[309786402,1704123041140,-202.19997645,0.00028,2]
[309786403,1704123041150,-200.0,0.00028,5]
[309786404,1704123041160,-250.0,0.00028,2]
[309786405,1704123041170,-175.64,0.00028,2]
[309786406,1704123041180,-165.22,0.00028046,2]
[309786407,1704123041189,-505.6,0.00028102,2]
[309786408,1704123041199,-2221.58,0.00028248,2]
[309786409,1704123041208,-250.0,0.00028274,2]
[309786410,1704123041218,-374.22,0.00028392,2]
[309786411,1704123041227,-200.0,0.00028548,5]
[309786412,1704123041237,-250.0,0.00028548,2]
[309786413,1704123041246,-350.45,0.00028548,2]
[309786414,1704123041255,-165.22,0.00028714,2]
[309786415,1704123041265,-3876.3980563,0.00028726,2]
[309786416,1704123041276,-220.884249,0.00028767,14]
[309786417,1704123041287,-194.89,0.00028822,2]
[309786418,1704123041297,-250.0,0.00028822,2]
[309786419,1704123041307,-1055.70484701,0.000289,2]
[309786420,1704123041317,-191.96207289,0.000289,2]
[309786421,1704123041326,-893.36225534,0.000289,2]
[309786422,1704123041336,-168.16911114,0.000289,2]
[309786423,1704123041346,-165.27865294,0.00028916,2]
[309786424,1704123041356,-201.25933419,0.00028916,2]
[309786425,1704123041365,-182.19558738,0.00028999,2]
[309786426,1704123041375,-500.0,0.00028999,2]
[309786427,1704123041385,-389.8875485,0.00028999,2]
[309786428,1704123041396,-1000.0,0.00028999,2]
[309786429,1704123041405,-581.97850804,0.00028999,2]
[309786430,1704123041414,-164.24,0.00028999,4]
[309786431,1704123041424,-524.73259485,0.00028999,4]
[309786432,1704123041434,-420.84786215,0.00028999,4]
[309786433,1704123041444,-376.37261595,0.00028999,4]
[309786435,1704123041455,-1000000.0,0.00029,2]
[309786436,1704123041465,-151.0,0.00029,7]
[309786437,1704123041474,-151.0,0.00029,7]
[309786438,1704123041484,-151.0,0.00029,7]
[309786439,1704123041494,-151.0,0.00029,7]
[309786440,1704123041505,-151.0,0.00029,7]
[309786441,1704123041516,-151.0,0.00029,7]
[309786442,1704123041525,-151.0,0.00029,7]
[309786443,1704123041535,-192.274351,0.00029,7]
[309786444,1704123041545,-151.0,0.00029,7]
[309786445,1704123041554,-167.38,0.00029044,2]
[309786446,1704123041565,-306.32549362,0.00029198,4]
[309786447,1704123041575,-2221.58,0.00029221,2]
[309786448,1704123041586,-374.22,0.0002937,2]
[309786449,1704123041596,-165.22,0.00029381,2]
[309786450,1704123041606,-3876.3980563,0.00029552,2]
[309786451,1704123041616,-205.0,0.00029788,2]
[309786452,1704123041627,-220.884249,0.00029863,14]
[309786453,1704123041637,-151.97488711,0.000299,2]
[309786454,1704123041646,-250.91101611,0.0003,2]
[309786455,1704123041657,-338.93036748,0.0003,2]
[309786456,1704123041667,-7940.21,0.00030137,2]
[309786457,1704123041680,-170.41202413,0.00030166,2]
[309786458,1704123041692,-2221.58,0.00030194,2]
[309786459,1704123041704,-153.84,0.00030268,2]
[309786460,1704123041714,-374.22,0.00030349,2]
[309786461,1704123041725,-505.6,0.00030366,2]
[309786462,1704123041738,-3876.3980563,0.00030378,2]
[309786463,1704123041749,-430.4,0.00030487,2]
[309786464,1704123041759,-210.0,0.00030489,2]
[309786465,1704123041768,-306.32549362,0.00030496,5]
[309786466,1704123041777,-150.0,0.000308,2]
[309786467,1704123041787,-220.884249,0.00030959,14]
[309786468,1704123041798,-153.84,0.00031186,2]
[309786469,1704123041807,-569.6,0.00031195,2]
[309786470,1704123041818,-3876.3980563,0.00031204,2]
[309786471,1704123041827,-374.22,0.00031327,2]
[309786472,1704123041837,-300.0,0.00031348,2]
[309786473,1704123041847,-242.13,0.00031507,2]
[309786474,1704123041858,-306.32549362,0.00031794,5]
[309786475,1704123041868,-151.0,0.000318,7]
[309786476,1704123041878,-234.321918,0.000318,7]
[309786477,1704123041889,-151.0,0.000318,7]
[309786478,1704123041899,-151.0,0.000318,7]
[309786479,1704123041908,-151.0,0.000318,7]
[309786480,1704123041919,-151.0,0.000318,7]
[309786481,1704123041929,-161.382869,0.000318,7]
[309786482,1704123041943,-151.0,0.000318,7]
[309786483,1704123041955,-151.0,0.000318,7]
[309786484,1704123041966,-151.0,0.000318,7]
[309786485,1704123041976,-151.0,0.000318,7]
[309786486,1704123041988,-193.798349,0.000318,7]
[309786487,1704123042000,-151.0,0.000318,7]
[309786488,1704123042011,-376.440057,0.000318,7]
[309786489,1704123042025,-376.440057,0.000318,7]
[309786490,1704123042035,-230.386006,0.000318,7]
[309786491,1704123042045,-230.386006,0.000318,7]
[309786492,1704123042055,-10479.6978555,0.000318,3]
[309786493,1704123042066,-151.0,0.000318,7]
[309786494,1704123042079,-2154.56,0.00031946,2]
[309786495,1704123042090,-21533.56651079,0.00032,2]
[309786496,1704123042101,-3876.3980563,0.0003203,3]
[309786497,1704123042110,-220.884249,0.00032055,14]
[309786498,1704123042121,-153.84,0.00032103,2]
[309786499,1704123042131,-374.22,0.00032306,2]
[309786500,1704123042141,-170.41202413,0.00032432,2]
[309786501,1704123042151,-205.0,0.00032534,7]
[309786502,1704123042161,-505.6,0.0003263,2]
[309786503,1704123042172,-3876.3980563,0.00032855,4]
[309786504,1704123042181,-500.0,0.00032876,7]
[309786505,1704123042192,-167.41566137,0.00032876,7]
[309786506,1704123042205,-212.42,0.00032877,15]
[309786507,1704123042217,-151.0,0.0003288,7]
[309786508,1704123042227,-151.0,0.0003288,7]
[309786509,1704123042237,-151.0,0.0003288,7]
[309786510,1704123042247,-151.0,0.0003288,7]
[309786511,1704123042258,-151.0,0.0003288,7]
[309786512,1704123042267,-151.0,0.0003288,7]
[309786513,1704123042277,-151.0,0.0003288,7]
[309786514,1704123042287,-151.0,0.0003288,7]
[309786515,1704123042298,-252.389731,0.0003288,7]
[309786516,1704123042308,-376.440057,0.0003288,7]
[309786517,1704123042318,-376.440057,0.0003288,7]
[309786518,1704123042328,-230.386006,0.0003288,7]
[309786519,1704123042339,-230.386006,0.0003288,7]
[309786520,1704123042350,-162.913375,0.0003288,7]
[309786521,1704123042360,-5279.56,0.0003288,2]
[309786522,1704123042370,-5279.56,0.0003288,2]
[309786523,1704123042380,-5279.56,0.0003288,2]
[309786524,1704123042390,-5279.56,0.0003288,2]
[309786525,1704123042400,-5279.56,0.0003288,2]
[309786526,1704123042410,-402.62910757,0.000329,2]
[309786527,1704123042421,-1169.27973926,0.00032943,2]
[309786528,1704123042430,-1055.70484701,0.00032943,2]
[309786529,1704123042439,-893.36225533,0.00032943,2]
[309786530,1704123042449,-153.84,0.0003302,2]
[309786531,1704123042458,-306.32549362,0.00033091,6]
[309786532,1704123042470,-374.22,0.00033284,2]
[309786533,1704123042480,-158.84,0.00033603,2]
[309786534,1704123042489,-3876.3980563,0.00033681,5]
[309786535,1704123042499,-685.63448685,0.0003384,4]
[309786536,1704123042510,-1965.55630603,0.00033841,4]
[309786537,1704123042520,-430.4,0.00033875,2]
[309786538,1704123042529,-153.84,0.00033937,2]
[309786539,1704123042539,-6000.0,0.00034,2]
[309786540,1704123042550,-1000.0,0.00034,4]
[309786541,1704123042559,-151.0,0.00034,7]
[309786542,1704123042569,-151.0,0.00034,7]
[309786543,1704123042579,-36829.26,0.00034,2]
[309786544,1704123042588,-175.753417,0.00034,7]
[309786545,1704123042598,-195.979657,0.00034,7]
[309786546,1704123042607,-151.0,0.00034,7]
[309786547,1704123042617,-284.288162,0.00034,7]
[309786548,1704123042626,-151.0,0.00034,7]
[309786549,1704123042635,-151.0,0.00034,7]
[309786550,1704123042645,-151.0,0.00034,7]
[309786551,1704123042655,-151.0,0.00034,7]
[309786552,1704123042664,-162.063027,0.00034,7]
[309786553,1704123042673,-162.063027,0.00034,7]
[309786554,1704123042683,-151.0,0.00034,7]
[309786555,1704123042692,-151.0,0.00034,7]
[309786556,1704123042701,-330.765924,0.00034,7]
[309786557,1704123042711,-330.765924,0.00034,7]
[309786558,1704123042720,-151.0,0.00034,7]
[309786559,1704123042730,-374.22,0.00034263,2]
[309786560,1704123042741,-150.0,0.00034336,2]
[309786561,1704123042760,-3000.0,0.0003435,2]
[309786564,1704123042769,-306.32549362,0.00034389,7]
[309786566,1704123042779,-3876.3980563,0.00034507,6]
[309786568,1704123042788,-151.0,0.0003452,7]
[309786570,1704123042797,-9962.572882,0.0003452,2]
[309786571,1704123042806,-52755.652496,0.0003452,2]
[309786573,1704123042816,-174.202873,0.0003452,7]
[309786575,1704123042825,-151.0,0.0003452,7]
[309786577,1704123042839,-151.0,0.0003452,7]
[309786578,1704123042849,-239.275097,0.0003452,7]
[309786579,1704123042858,-151.0,0.0003452,7]
[309786580,1704123042867,-376.440057,0.0003452,7]
[309786581,1704123042878,-376.440057,0.0003452,7]
[309786582,1704123042887,-230.386006,0.0003452,7]
[309786583,1704123042898,-230.386006,0.0003452,7]
[309786584,1704123042907,-151.0,0.0003452,7]
[309786585,1704123042916,-158.564919,0.0003452,7]
[309786586,1704123042926,-162.063027,0.0003452,7]
[309786587,1704123042938,-162.063027,0.0003452,7]
[309786588,1704123042948,-151.0,0.0003452,7]
[309786589,1704123042957,-151.0,0.0003452,7]
[309786590,1704123042966,-330.765924,0.0003452,7]
[309786591,1704123042975,-330.765924,0.0003452,7]
[309786592,1704123042984,-151.0,0.0003452,7]
[309786593,1704123042994,-7558.23422147,0.00034539,4]
[309786594,1704123043003,-151.0,0.00034539,7]